Cogmind - Beta 14 *** ADVENTURER MODE // 2024.09.27 @ 00:43:52 Player: insll8 Result: Destroyed by D-53 Grenadier with Mini Grenade Launcher Performance ------------- Evolutions (0) 0 Regions Visited (2) 400 Robots Destroyed (37) 185 Value Destroyed (654) 654 Prototype IDs (0) 0 Alien Tech Used (0) 0 Bonus (67) 67 TOTAL SCORE: 1306 Bonus ------- Follower Combat Kills 67 Cogmind --------- Core Integrity 0/250 Matter 182/300 Energy 90/125 System Corruption 0% Temperature Cool (0) Movement Treading (160) Location -10/Mines Parts ------- > --- POWER (1) -------- Light Ion Engine > --- PROPULSION (2) --- Light Treads Light Treads > --- UTILITY (2) ------ Large Storage Unit > --- WEAPON (2) ------- (None) > --- INVENTORY (15) --- VTOL Module VTOL Module VTOL Module Improved Terrain Scanner Seismic Detector Light Armor Plating Light Armor Plating Assault Rifle Rocket Launcher Datajack Mining Laser Peak State ------------ > --- POWER ------------ Ion Engine > --- PROPULSION ------- Light Treads Light Treads > --- UTILITY ---------- Large Storage Unit Light Armor Plating > --- WEAPON ----------- Assault Rifle Rocket Launcher > --- INVENTORY -------- Light Ion Engine VTOL Module VTOL Module VTOL Module Improved Terrain Scanner Seismic Detector Light Armor Plating Light Armor Plating Decoy Drone Bay Assault Rifle Rocket Launcher Datajack Mining Laser [Rating: 11] Favorites ----------- Power Ion Engine Engine Ion Engine Propulsion Light Treads Treads Light Treads Wheel Wheel Utility Large Storage Unit Device Seismic Detector Storage Large Storage Unit Processor Transport Network Coupler Protection Light Armor Plating Weapon Assault Rifle Ballistic Gun Assault Rifle Launcher Rocket Launcher Special Weapon Mining Laser Build | -11 -10 -10 ------- Run | Yrd Mat Min Slots Evolved . | . . . Power . | . . . Propulsion . | . . . Utility . | . . . Weapon . | . . . Parts Attached 24 | 5 14 5 Power 4 | 1 2 1 Engine 4 | 1 2 1 Core . | . . . Reactor . | . . . Propulsion 5 | 2 3 . Treads 3 | . 3 . Leg . | . . . Wheel 2 | 2 . . Hover . | . . . Flight . | . . . Utility 8 | . 6 2 Device 1 | . 1 . Storage 3 | . 3 . Processor 1 | . 1 . Hackware . | . . . Protection 3 | . 1 2 Artifact . | . . . Weapon 7 | 2 3 2 Energy Gun . | . . . Energy Cannon . | . . . Ballistic Gun 4 | 2 2 . Ballistic Cannon . | . . . Launcher 2 | . 1 1 Special Weapon 1 | . . 1 Impact Weapon . | . . . Slashing Weapon . | . . . Piercing Weapon . | . . . Special Melee Weapon . | . . . Unidentified Prototypes . | . . . Parts Lost 6 | . 2 4 Power 1 | . . 1 Propulsion 1 | . 1 . Utility 2 | . 1 1 Weapon 2 | . . 2 Highest Loss Streak 4 | . 1 4 To Critical Strikes . | . . . Average Slot Usage (%) 98 | . 97 99 Engine 13 | . 13 14 Treads 20 | . 15 28 Wheel 6 | . 10 . Device 2 | . 3 . Storage 13 | . 13 14 Processor 8 | . 8 9 Protection 3 | . 1 4 Ballistic Gun 20 | . 24 13 Launcher 6 | . 3 11 Special Weapon 1 | . . 2 Peak Build Rating 11 | 5 10 11 Average Rating 8 | 4 7 9 On Entrance 5 | . 5 10 Naked Turns . | . . . Heaviest Build 34 | 6 31 34 Greatest Support 40 | 20 40 40 Greatest Overweight (x) 3 | . 3 . Average Overweight (x) . | . . . Largest Inventory Capacity 25 | 5 25 15 Average Capacity 13 | 5 14 15 Most Carried 15 | 4 15 15 Average Carried 9 | 3 8 13 Final Capacity 15 | 5 15 15 Final Carried 13 | 4 13 11 Class Distribution -------------------- 57% | Mutant 42% | Scavenger-Mutant Dominant Class ---------------- Mutant | -10/Materials Scavenger-Mutant | -10/Mines Resources | -11 -10 -10 ----------- Run | Yrd Mat Min Matter Collected 837 | 240 460 137 Remotely . | . . . Salvage Created 881 | 123 679 79 Parts 75 | 17 50 8 Haulers Intercepted 2 | . 2 . Recyclers Shooed 1 | . 1 . Parts Field Recycled . | . . . Retrieved Matter . | . . . Parts Self-Destructed . | . . . Prevented . | . . . Kills | -11 -10 -10 ------- Run | Yrd Mat Min Combat Hostiles Destroyed 42 | 1 16 25 Guns 11 | 1 10 . AOE 31 | . 6 25 Classes Destroyed 8 | 2 5 1 Worker 2 | . 1 1 Builder 2 | . 2 . Tunneler 6 | 4 2 . Hauler 2 | . 2 . Watcher 2 | . 2 . Swarmer 11 | . 5 6 Grunt 12 | 1 11 . Assembled 19 | . . 19 Best Kill Streak 19 | 5 4 19 Combat Bots Only 19 | 1 3 19 Max Kills in Single Turn 6 | 1 3 6 Gunslinging 1 | . 1 . Exploded 6 | . 2 6 Melee . | . . . Uniques/NPCs Destroyed . | . . . Combat | -11 -10 -10 -------- Run | Yrd Mat Min Hostile Shots Fired 137 | 3 92 42 Missed 42 | . 31 11 Damage Taken 1123 | 26 583 514 Core 259 | 9 158 92 Absorbed by Shields . | . . . Ignored by Resistances 331 | 9 179 143 Regen/Repaired (Parts) 75 | . 75 . Core Remaining (%) 96 | 96 . . Volleys Fired 104 | 10 75 19 Largest 2 | 2 2 1 Hottest 100 | 40 40 100 Shots Fired 166 | 20 127 19 Gun 146 | 20 121 5 Cannon . | . . . Launcher 19 | . 6 13 Special 1 | . . 1 Kinetic 146 | 20 121 5 Thermal 1 | . . 1 Explosive 19 | . 6 13 Electromagnetic . | . . . Robot Hit Streak 18 | 9 18 5 Robot Miss Streak 4 | 1 4 1 Penetration Max . | . . . Secondary Targets 2 | . 2 . Max Gunslinging Chain 1 | . 1 . Shots Hit Robots 104 | 14 85 5 Core Hits 93 | 7 43 43 Critical Kills . | . . . Critical Parts Destroyed 1 | . 1 . Critical Strikes 1 | . 1 . Destroy 1 | . 1 . Melee Attacks . | . . . Impact . | . . . Slashing . | . . . Piercing . | . . . Sneak Attacks . | . . . Combat Hostiles . | . . . Follow-up Attacks . | . . . Damage Inflicted 3278 | 159 1486 1633 Guns 1196 | 159 985 52 Cannons . | . . . Explosions 2073 | . 501 1572 Melee . | . . . Ramming 9 | . . 9 Kinetic 1196 | 159 985 52 Thermal . | . . . Explosive 2073 | . 501 1572 Electromagnetic . | . . . Impact . | . . . Slashing . | . . . Piercing . | . . . Highest Corruption . | . . . Average Corruption . | . . . Corruption Purged . | . . . Corruption Blocked . | . . . Overload Shots . | . . . Overflow Damage 47 | . 34 13 Projectiles . | . . . Explosions 47 | . 34 13 Melee . | . . . Knockbacks . | . . . Impact . | . . . Kinetic . | . . . Secondary . | . . . Self-Inflicted Damage 92 | . 74 18 Shots 3 | . 2 1 Rammed 1 | . . 1 Targets Rammed 1 | . . 1 Kicked . | . . . Crushed . | . . . Highest Temperature 53 | 12 35 53 Average Temperature 11 | 7 9 21 Received Heat Transfer 451 | 18 321 112 Siege Activations . | . . . Robots Corrupted . | . . . Combat Hostiles . | . . . Parts Fried . | . . . Impact Corruptions . | . . . Robots Melted . | . . . Combat Hostiles . | . . . Parts Melted . | . . . Heat Transferred . | . . . Parts Sabotaged . | . . . Parts Stolen . | . . . Parts Stripped . | . . . Power Chain Reactions . | . . . Alert | -11 -10 -10 ------- Run | Yrd Mat Min Peak Influence 234 | 40 232 234 Initial 22 | . 22 . Average 79 | 32 92 78 Maximum Alert Level 1 | . 1 1 Low Security (%) 90 | 100 91 84 Level 1 9 | . 8 15 Level 2 . | . . . Level 3 . | . . . Level 4 . | . . . Level 5 . | . . . High Security . | . . . Max Security . | . . . Squads Dispatched 3 | . 2 1 Investigation 2 | . 2 . Extermination . | . . . Reinforcement . | . . . Assault 1 | . . 1 Garrison . | . . . Intercept . | . . . Searches Triggered . | . . . Construction Impeded . | . . . Haulers Reinforced . | . . . Active Scanning Responses . | . . . Cargo Convoy Interrupts . | . . . Stealth | -11 -10 -10 --------- Run | Yrd Mat Min Distress Signals . | . . . Communications Jammed . | . . . Distress Signals . | . . . Times Spotted 47 | 1 22 24 Peak Tracking Total 16 | 1 3 16 Tactical Retreats . | . . . Traps | -11 -10 -10 ------- Run | Yrd Mat Min Traps Triggered 1 | . 1 . Indirectly . | . . . Trap Hack Attempts . | . . . Triggered . | . . . Disarmed 3 | . 3 . Reprogrammed . | . . . Reused . | . . . Traps Extracted . | . . . Installed . | . . . Triggered . | . . . Machines | -11 -10 -10 ---------- Run | Yrd Mat Min Machines Disabled 2 | . 1 1 Max in Single Turn 1 | . 1 1 Machines Repaired . | . . . Machines Dismantled . | . . . Machines Sabotaged . | . . . Overloaded Fab Kills . | . . . Hacking | -11 -10 -10 --------- Run | Yrd Mat Min Machines Accessed 8 | . 7 1 Terminals 4 | . 4 . Fabricators . | . . . Repair Stations 1 | . 1 . Recycling Units 2 | . 2 . Scanalyzers . | . . . Garrison Access . | . . . Total Hacks 20 | . 19 1 Successful 15 | . 14 1 Failed 5 | . 5 . Catastrophic . | . . . Database Lockouts . | . . . Manual . | . . . Terminals 12 | . 12 . Fabricators . | . . . Repair Stations 3 | . 3 . Recycling Units 4 | . 4 . Scanalyzers . | . . . Garrison Access . | . . . Terminal Hacks 9 | . 8 1 Open Door 1 | . . 1 Emergency Access Points 1 | . 1 . Alert Level 3 | . 3 . Unreport Threat 1 | . 1 . Locate Traps 1 | . 1 . Disarm Traps 1 | . 1 . Hauler Manifests 1 | . 1 . Fabricator Hacks . | . . . Repair Station Hacks 3 | . 3 . Scan Component 2 | . 2 . Repair 1 | . 1 . Recycling Unit Hacks 3 | . 3 . Report Inventory 2 | . 2 . Retrieve Components 1 | . 1 . Scanalyzer . | . . . Garrison Access Hacks . | . . . Unauthorized Hacks . | . . . Terminals . | . . . Fabricators . | . . . Repair Stations . | . . . Recycling Units . | . . . Scanalyzers . | . . . Garrison Access . | . . . Data Cores Recovered . | . . . Used . | . . . Hacking Detections 7 | . 7 . Full Trace Events 4 | . 4 . Feedback Events . | . . . Feedback Blocked . | . . . Robot Schematics Acquired . | . . . Robots Built . | . . . Authchips . | . . . Time . | . . . Total Robot Build Rating . | . . . Part Schematics Acquired . | . . . Parts Built . | . . . Authchips . | . . . Time . | . . . Total Part Build Rating . | . . . Parts Repaired 1 | . 1 . Time 26 | . 26 . Parts Recycled . | . . . Recycled Matter . | . . . Retrieved Matter . | . . . Retrieved Components . | . . . Parts Scanalyzed . | . . . Part Schematics Acquired . | . . . Parts Damaged . | . . . Bothacking | -11 -10 -10 ------------ Run | Yrd Mat Min Used RIF Installer . | . . . Robots Hacked . | . . . Non-combat . | . . . Combat . | . . . Robot Hacks Applied . | . . . Relay Couplers Released . | . . . Fabnet Peak Effective % . | . . . Robots Rewired . | . . . Allies Hacked . | . . . Hacks Repelled . | . . . Allies | -11 -10 -10 -------- Run | Yrd Mat Min Total Allies 3 | . . 3 Largest Group 3 | . . 3 Highest-Rated Group 73 | . . 73 Highest-Rated Ally 31 | . . 31 Total Orders . | . . . Ally Attacks 15 | . . 15 Total Damage 274 | . . 274 Kills 3 | . . 3 Allies Corrupted . | . . . Allies Melted . | . . . Intel | -11 -10 -10 ------- Run | Yrd Mat Min Robot Analysis Total . | . . . Derelict Logs Recovered 1 | . . 1 Drone Launches . | . . . Drone Recoveries . | . . . Exploration | -11 -10 -10 ------------- Run | Yrd Mat Min Turns Passed 2273 | 317 1220 736 Spaces Moved 1061 | 94 563 404 Core 27 | 27 . . Treads 727 | . 323 404 Legs . | . . . Wheels 307 | 67 240 . Hover . | . . . Flight . | . . . Fastest Speed 50 | 50 80 160 Average Speed 138 | 71 133 160 Slowest Speed 160 | 80 160 160 Overloaded Moves . | . . . Propulsion Burnouts . | . . . Robots Hopped . | . . . Cave-ins Triggered . | . . . Exploration Rate (%) 49 | 7 75 65 Regions Visited 2 Branch Regions 1 Pre-discovered Areas . | . . . Known Exits Taken . | . . . Unknown Exits Taken 2 | 1 1 . Scrap Searched . | . . . Spaces Dug 14 | . . 14 Terrain Destroyed 163 | . 55 108 Melee . | . . . Projectile 1 | . . 1 AOE 162 | . 55 107 Terrain Rammed . | . . . Walls Destroyed . | . . . Machines Disabled . | . . . Actions | -11 -10 -10 --------- Run | Yrd Mat Min Total 1713 | 325 916 472 Wait 473 | 208 227 38 Move 1059 | 93 562 404 Hop . | . . . Pick Up 37 | 9 26 2 Fast Attach . | . . . Attach 15 | 5 8 2 Detach 1 | . . 1 Swap 9 | . 6 3 Drop 14 | . 12 2 Fire 104 | 10 75 19 Melee . | . . . Ram . | . . . Kick . | . . . Crush 1 | . . 1 Escape Stasis . | . . . Rewire . | . . . Trap . | . . . Miscellaneous . | . . . Route ------- -11/Scrapyard -10/Materials (discovered 4 exits: [*Mat x2] / *Min x2) -10/Mines (discovered 1 exit: [*Mat]) History --------- Turn | Location | Event 2 | -11/Scrapyard | Met Revision 17 49 | -11/Scrapyard | Discovered new exit (range 8) 318 | -11/Scrapyard | Entered Materials 319 | -10/Materials | Build established: Mutant 448 | -10/Materials | Discovered new exit (range 8) 768 | -10/Materials | Discovered new exit (range 15) 1006 | -10/Materials | Core integrity fell below 50% 1108 | -10/Materials | Discovered new exit (range 16) 1281 | -10/Materials | Discovered new exit (range 16) 1353 | -10/Materials | Build established: Scavenger-Mutant 1385 | -10/Materials | Repaired Lgt. Treads 1538 | -10/Materials | Entered Mines 1551 | -10/Mines | Met a Derelict bent on vengeance 1657 | -10/Mines | Met a Derelict testing a Signal Generator 2011 | -10/Mines | Found the Drone Emporium 2022 | -10/Mines | Found Prototype Device 2089 | -10/Mines | Found a damaged Exp. Sensor Array with a note attached 2127 | -10/Mines | Discovered new exit (range 9) 2223 | -10/Mines | Assembled infested the area 2232 | -10/Mines | Core integrity fell below 20% 2274 | -10/Mines | Destroyed by D-53 Grenadier with Mini Grenade Launcher Last Messages --------------- as-76886 destroyed. [Achievement: Quick And Dirty] as-15244 destroyed. as-35434 destroyed. as-94599 destroyed. [Achievement: Exterminator] as-38328 destroyed. as-99111 destroyed. as-15002 destroyed. K-01 Serf collects debris. C-30 ARC bursts open, deploying its payload. D-53 Grenadier unfolds itself. Assault Rifle destroyed. K-01 Serf collects debris. The unstable cave ceiling collapses. Ion Engine destroyed. Lgt. Armor Plating destroyed. The unstable cave ceiling collapses. K-01 Serf collects debris. Rocket Launcher destroyed. Map ----- +----------------------------------------------------+ | ????????????????????????????????????????????? | | ???????????????????????????? % ????????????? | | ??????????????????????????? ???????????? | | ???????????????????????????? ???????????? | | ???????????????????????????? % ???????????? | | ???????????????????????????? ???????????? | | ????????????????????????? ??????????? | | ????????????????????????????# ??????????? | | ????????????????????????????#=% #??????????? | | ????????????????????????????# #??????????? | | ????????????????????????????# ####???????? | | ????????????????????????????# #???????? | | ????????????????????????????# ##??????? | | ???????????????????????????? #??????? | | ?????????????????????????### #??????? | | ?????????????????????????# #??????? | | ???????????????????????### % #????????? | | ???????????????????????# #????????? | | ???????????????????????# #????????? | | ???????????????????????# ##????????? | | ???#???????????????????## ## ##????????? | | ? ??????????????????### k##### ###??????? | | #???????????????????# ### ##?????? | | #???????????????????# #?????? | | #???????????????????# #?????? | | ????#???????????????## @ #?????? | | ??? ###?????????????# d ####??? | | ?## ##????????????# d #?? | | # #????????????# # #?? | | ??????????# # #?? | | #?????????????????# #### ## #?? | | ##??###????????????# ###### #?? | | #???# ???####????## # #?? | | #???# #??## ##??## #### ##?? | | ##??# #?## #### #### ##??####??? | | ##?# ### ## #??# ##?????????? | | #?# ## ###??## #??????????? | | ### # < ###?????## #??????????? | | #####????????## ##??????????? | | ##?????????????#####???????????? | | ######### ##??????????????????????????????? | | ##???????####???????????????????????????????? | | ????????????????????????????????????????????? | | ????????????????????????????????????????????? | | | | | | | | | | | | | +----------------------------------------------------+ Best States ------------- Heat Dissipation 25 Energy Generation 10 Energy Capacity 250 Matter Stores 300 Matter Capacity 300 Sight Range 16 Terrain Scan Density 10 Armor Coverage 150 Resistance: KI 20 Resistance: TH 20 Resistance: EX 20 Resistance: EM 20 Resistance: I 20 Resistance: S 20 Resistance: P 20 Evasion (%) 50 Recoil Reduction 2 Offensive Hacking 10 Item Schematics ----------------- None Robot Schematics ------------------ None Fabricated ------------ Nothing Alien Tech Used ----------------- None Achievements -------------- Exterminator Quick And Dirty Challenges ------------ None Game ------ Seed BiocellCommFlamer Manual? 0 Play Time 00:33:14 Cumulative 4.9 hours Start 2024.09.27 @ 00:03:18 End 2024.09.27 @ 00:43:52 Sessions 1 Manual Loads 0 Difficulty Adventurer Special Mode None Game No. 3 Rogue 0 Adventurer 3 Explorer 0 Win Type - Total 0 Types 0/0/0/0/0/0/0/0/0 Lore% 3 Gallery% 7 Achievement% 12 Wizard Run 0 Options --------- Layout 1 ASCII 0 Keyboard 0 Movement Mouse Keybinds 0 Fullscreen 2 Font 24/Smallcaps Map View 50x35 Zoom Use 0% Tactical HUD 0 Map Filters NONE Filters NONE Steam 1 RUN: 17bf40c8-d677-4f0f-933c-8ab556661aa5